bitfinex/quotes_BTCUSD_20240731
["timestamp","ask_amount","ask_price","bid_price","bid_amount"]
[1722423038348,0.00283,66143.0,66142.0,1.04598004]
[1722423052830,0.00083,66143.0,66142.0,1.04998004]
[1722423053253,0.00083,66143.0,66142.0,1.05398004]
[1722423054738,0.00083,66143.0,66142.0,0.61220104]
[1722423055770,0.00083,66143.0,66142.0,0.91058004]
[1722423055973,0.00083,66143.0,66142.0,0.90658004]
[1722423056140,0.00083,66143.0,66142.0,0.90858004]
[1722423056358,0.00083,66143.0,66142.0,0.91058004]
[1722423056605,0.00083,66143.0,66142.0,0.90658004]
[1722423056898,0.00083,66143.0,66142.0,0.91058004]
[1722423057102,0.00083,66143.0,66142.0,0.91258004]
[1722423057315,0.00083,66143.0,66142.0,0.60820104]
[1722423057510,0.00083,66143.0,66142.0,0.61220104]
[1722423057716,0.00083,66143.0,66142.0,0.91458004]
[1722423059674,0.00083,66143.0,66142.0,0.61220104]
[1722423060163,0.00083,66143.0,66142.0,0.91458004]
[1722423060335,0.00083,66143.0,66142.0,0.61220104]
[1722423060631,0.00083,66143.0,66142.0,0.91458004]
[1722423060992,0.00083,66143.0,66142.0,0.61220104]
[1722423062071,0.00083,66143.0,66142.0,0.15863304]
[1722423062631,0.300717,66143.0,66142.0,0.15863304]
[1722423062858,0.603092,66143.0,66142.0,0.15463304]
[1722423063066,0.603092,66143.0,66142.0,0.15063304]
[1722423063284,0.905467,66143.0,66142.0,0.15063304]
[1722423063651,0.905467,66143.0,66142.0,0.99914334]
[1722423063652,0.00083,66143.0,66142.0,0.99914334]
[1722423064044,0.00483,66143.0,66142.0,1.00014334]
[1722423064578,0.00083,66143.0,66142.0,0.69676434]
[1722423064783,0.00083,66143.0,66142.0,1.00314334]
[1722423065007,0.00083,66143.0,66142.0,1.06794334]
[1722423065480,0.00083,66143.0,66142.0,1.37032234]
[1722423065696,0.00083,66143.0,66142.0,1.38032234]
[1722423066119,0.00083,66143.0,66142.0,1.37032234]
[1722423066330,0.00083,66143.0,66142.0,1.37432234]
[1722423066891,0.00083,66143.0,66142.0,1.69670134]
[1722423067095,0.00083,66143.0,66142.0,1.95527134]
[1722423068279,0.00083,66143.0,66142.0,1.95727134]
[1722423068522,0.00083,66143.0,66142.0,1.93527134]
[1722423068743,0.00083,66143.0,66142.0,1.94367034]
[1722423068961,0.00083,66143.0,66142.0,1.95367034]
[1722423069155,0.00083,66143.0,66142.0,1.92967034]
[1722423070420,0.00083,66143.0,66142.0,1.94367034]
[1722423070648,0.00083,66143.0,66142.0,1.81970134]
[1722423070865,0.00083,66143.0,66142.0,1.82970134]
[1722423071093,0.00083,66143.0,66142.0,1.84970134]
[1722423071989,0.00083,66143.0,66142.0,1.85170134]
[1722423073189,0.00083,66143.0,66142.0,2.05665134]
[1722423077030,0.00083,66143.0,66142.0,2.03465134]
[1722423077209,0.00083,66143.0,66142.0,2.01930334]
[1722423077412,0.00083,66143.0,66142.0,1.82970134]
[1722423077613,0.00083,66143.0,66142.0,1.52732234]
[1722423077811,0.00083,66143.0,66142.0,1.50432234]
[1722423078011,0.00083,66143.0,66142.0,1.82670134]
[1722423078244,0.00083,66143.0,66142.0,1.80670134]
[1722423078818,0.00083,66143.0,66142.0,1.82670134]
[1722423079215,0.00083,66143.0,66142.0,1.84970134]
[1722423080256,0.00083,66143.0,66142.0,2.05465134]
[1722423082195,0.00083,66143.0,66142.0,2.05665134]
[1722423088511,0.00083,66143.0,66142.0,1.82970134]
[1722423088717,0.00083,66143.0,66142.0,2.23416934]
[1722423089704,0.00083,66143.0,66142.0,2.21216934]
[1722423089878,0.00083,66143.0,66142.0,1.99971734]
[1722423090089,0.00083,66143.0,66142.0,1.82970134]
[1722423090728,0.00083,66143.0,66142.0,2.06395834]
[1722423090926,0.00083,66143.0,66142.0,2.08595834]
[1722423092083,0.00083,66143.0,66142.0,1.85170134]
[1722423092249,0.00083,66143.0,66142.0,2.08595834]
[1722423092468,1e-06,66143.0,66142.0,2.57925734]
[1722423092873,1e-06,66143.0,66142.0,2.08595834]
[1722423093572,1e-06,66143.0,66142.0,1.82970134]
[1722423095584,1e-06,66143.0,66142.0,1.84970134]
[1722423096674,1e-06,66143.0,66142.0,1.82970134]
[1722423101780,1e-06,66143.0,66142.0,1.92970134]
[1722423106110,1e-06,66143.0,66142.0,1.94970134]
[1722423107185,1e-06,66143.0,66142.0,2.24640234]
[1722423108507,1e-06,66143.0,66142.0,2.24840234]
[1722423109431,1e-06,66143.0,66142.0,2.24931534]
[1722423111124,1e-06,66143.0,66142.0,2.18639734]
[1722423111329,1e-06,66143.0,66142.0,1.93061434]
[1722423111528,1e-06,66143.0,66142.0,2.16439734]
[1722423112569,1e-06,66143.0,66142.0,2.17834334]
[1722423113556,1e-06,66143.0,66142.0,2.18034334]
[1722423115038,1e-06,66143.0,66142.0,2.17834334]
[1722423115923,1e-06,66143.0,66142.0,2.18034334]
[1722423119691,1e-06,66143.0,66142.0,2.48272234]
[1722423120209,1e-06,66143.0,66142.0,2.18034334]
[1722423125143,1e-06,66143.0,66142.0,2.48272234]
[1722423125758,1e-06,66143.0,66142.0,4.48693534]
[1722423126170,1e-06,66143.0,66142.0,4.10285534]
[1722423126582,1e-06,66143.0,66142.0,3.94815334]
[1722423127402,1e-06,66143.0,66142.0,3.90285534]
[1722423141446,1e-06,66143.0,66142.0,5.31752134]
[1722423141655,1e-06,66143.0,66142.0,5.00263334]
[1722423142366,1e-06,66143.0,66142.0,5.46451234]
[1722423142905,1e-06,66143.0,66142.0,6.96451234]
[1722423143192,1e-06,66143.0,66142.0,7.66451234]
[1722423143398,1e-06,66143.0,66142.0,7.33413334]
[1722423143589,1e-06,66143.0,66142.0,5.65008734]
[1722423143815,1e-06,66143.0,66142.0,5.45732034]
[1722423143933,1e-06,66143.0,66142.0,5.44332034]
[1722423144137,1e-06,66143.0,66142.0,5.42264534]
[1722423145884,1e-06,66143.0,66142.0,5.72502434]
[1722423146622,1e-06,66143.0,66142.0,5.73902434]
[1722423147067,1e-06,66143.0,66142.0,5.72502434]
[1722423147424,1e-06,66143.0,66142.0,5.73902434]
[1722423148048,1e-06,66143.0,66142.0,5.43664534]
[1722423148855,1e-06,66143.0,66142.0,5.73902434]
[1722423150993,1e-06,66143.0,66142.0,5.43664534]
[1722423151547,1e-06,66143.0,66142.0,5.42048334]
[1722423151845,1e-06,66143.0,66142.0,3.20541334]
[1722423152054,1e-06,66143.0,66142.0,5.53157334]
[1722423152278,1e-06,66143.0,66142.0,2.98526634]
[1722423152480,1e-06,66143.0,66142.0,2.96326634]
[1722423152629,1e-06,66143.0,66142.0,2.68447634]
[1722423152834,1e-06,66143.0,66142.0,1.98447634]
[1722423153244,1e-06,66143.0,66142.0,2.00447634]
[1722423153626,1e-06,66143.0,66142.0,2.00647634]
[1722423154225,1e-06,66143.0,66142.0,2.02947634]
[1722423155517,1e-06,66143.0,66142.0,2.00747634]
[1722423155696,1e-06,66143.0,66142.0,1.78831434]
[1722423155918,1e-06,66143.0,66142.0,1.90558734]
[1722423156142,0.062001,66143.0,66142.0,1.90558734]
[1722423157110,0.137001,66143.0,66142.0,1.90558734]
[1722423158741,0.137001,66143.0,66142.0,2.21964465]
[1722423158943,0.137001,66143.0,66142.0,2.20564465]
[1722423159552,0.137001,66143.0,66142.0,2.27265393]
[1722423160905,0.075001,66143.0,66142.0,2.27265393]
[1722423161549,0.075001,66143.0,66142.0,2.30515393]
[1722423162241,1e-06,66143.0,66142.0,2.30515393]
[1722423162485,1e-06,66143.0,66142.0,2.30515382]
[1722423164747,1e-06,66143.0,66142.0,2.32515382]
[1722423165330,1e-06,66143.0,66142.0,2.32715382]
[1722423165961,1e-06,66143.0,66142.0,1.96008734]
[1722423166170,1e-06,66143.0,66142.0,2.27413584]
[1722423167620,1e-06,66143.0,66142.0,2.25213584]
[1722423169397,1e-06,66143.0,66142.0,1.93808734]
[1722423169618,1e-06,66143.0,66142.0,2.30514406]
[1722423170532,1e-06,66143.0,66142.0,2.53042106]
[1722423171656,1e-06,66143.0,66142.0,2.04734388]
[1722423171902,1e-06,66143.0,66142.0,1.91393388]
[1722423172666,1e-06,66143.0,66142.0,1.78831434]
[1722423172914,1e-06,66143.0,66142.0,1.91393953]
[1722423173421,1e-06,66143.0,66142.0,2.15538432]
[1722423174320,1e-06,66143.0,66142.0,2.99790708]
[1722423174494,1e-06,66143.0,66142.0,2.84137908]
[1722423175498,1e-06,66143.0,66142.0,2.89438788]
[1722423175697,1e-06,66143.0,66142.0,2.84137908]
[1722423175901,1e-06,66143.0,66142.0,2.89438729]
[1722423176101,1e-06,66143.0,66142.0,2.84137908]
[1722423176551,1e-06,66143.0,66142.0,2.98417908]
[1722423177061,1e-06,66143.0,66142.0,3.28655808]
[1722423177258,1e-06,66143.0,66142.0,2.98417908]
[1722423177824,1e-06,66143.0,66142.0,3.07509908]
[1722423178473,1e-06,66143.0,66142.0,3.37747808]
[1722423179500,1e-06,66143.0,66142.0,3.37745282]
[1722423182291,1e-06,66143.0,66142.0,3.42279445]
[1722423182491,1e-06,66143.0,66142.0,3.42277372]
[1722423182707,1e-06,66143.0,66142.0,3.44544263]
[1722423182910,1e-06,66143.0,66142.0,3.37743589]
[1722423183117,1e-06,66143.0,66142.0,3.44023734]
[1722423183501,1e-06,66143.0,66142.0,3.37743589]
[1722423183782,1e-06,66143.0,66142.0,3.17505689]
[1722423183918,1e-06,66143.0,66142.0,3.16105689]
[1722423184123,1e-06,66143.0,66142.0,3.46343589]
[1722423184771,1e-06,66143.0,66142.0,3.47743589]
[1722423184971,1e-06,66143.0,66142.0,3.44943589]
[1722423185176,1e-06,66143.0,66142.0,3.46343589]
[1722423185511,1e-06,66143.0,66142.0,3.47743589]
[1722423185869,1e-06,66143.0,66142.0,3.47744566]
[1722423186703,1e-06,66143.0,66142.0,4.16131566]
[1722423186916,1e-06,66143.0,66142.0,3.78579166]
[1722423187471,1e-06,66143.0,66142.0,3.69487166]
[1722423187674,1e-06,66143.0,66142.0,2.79684466]
[1722423187918,1e-06,66143.0,66142.0,2.70452966]
[1722423188155,1e-06,66143.0,66142.0,2.60652966]
[1722423188393,1e-06,66143.0,66142.0,2.70652966]
[1722423189043,1e-06,66143.0,66142.0,2.62832966]
[1722423189308,1e-06,66143.0,66142.0,2.62833624]
[1722423191838,1e-06,66143.0,66142.0,2.52833624]
[1722423192135,1e-06,66143.0,66142.0,2.62833624]
[1722423192360,1e-06,66143.0,66142.0,2.31430234]
[1722423192478,1e-06,66143.0,66142.0,2.62833654]
[1722423193043,1e-06,66143.0,66142.0,2.49802054]
[1722423193194,1e-06,66143.0,66142.0,2.39802054]
[1722423193400,1e-06,66143.0,66142.0,2.36821954]
[1722423193626,1e-06,66143.0,66142.0,2.38821954]
[1722423194201,1e-06,66143.0,66142.0,2.36821954]
[1722423194680,1e-06,66143.0,66142.0,2.31393354]
[1722423194867,0.05118507,66144.0,66143.0,1.370687]
[1722423194999,0.05118507,66144.0,66143.0,2.52330457]
[1722423195216,0.04560829,66144.0,66143.0,2.33229457]
[1722423195412,0.04560829,66144.0,66143.0,2.52330457]
[1722423195893,0.04560829,66144.0,66143.0,2.33229457]
[1722423196541,0.04560829,66144.0,66143.0,2.36029457]
[1722423199037,0.04560829,66144.0,66143.0,2.04626037]
[1722423199252,0.04560829,66144.0,66143.0,2.36031865]
[1722423199935,0.0622,66148.0,66147.0,1.058246]
[1722423200131,0.0622,66148.0,66147.0,1.80844268]
[1722423200557,0.1427,66148.0,66147.0,1.80844268]
[1722423201309,0.1427,66148.0,66147.0,1.82244268]
[1722423201529,0.1427,66148.0,66147.0,1.83644268]
[1722423202381,0.1427,66148.0,66147.0,1.71081937]
[1722423202580,0.1427,66148.0,66147.0,1.83644061]
[1722423204303,0.00903,66149.0,66148.0,0.76588]
[1722423204482,0.00903,66149.0,66148.0,1.44448628]
[1722423205932,0.00903,66149.0,66148.0,1.47248496]
[1722423206558,0.00903,66149.0,66148.0,1.34686504]
[1722423206766,0.00903,66149.0,66148.0,1.84642529]
[1722423209266,0.00903,66149.0,66148.0,1.72080537]
[1722423209466,0.00903,66149.0,66148.0,1.84642529]
[1722423209651,0.00903,66149.0,66148.0,1.47248496]
[1722423212203,0.00903,66149.0,66148.0,1.16013296]
[1722423212634,0.00903,66149.0,66148.0,1.16013729]
[1722423213068,0.09133,66149.0,66148.0,1.16013729]
[1722423215907,0.09133,66149.0,66148.0,1.1601411]
[1722423219236,0.09133,66149.0,66148.0,1.03451304]
[1722423219436,0.09133,66149.0,66148.0,1.16014193]
[1722423222280,0.00903,66149.0,66148.0,1.16014193]
[1722423222730,0.00903,66149.0,66148.0,1.16014208]
[1722423222949,0.00903,66149.0,66148.0,1.46249408]
[1722423223401,0.00903,66149.0,66148.0,1.16014208]
[1722423224063,0.00903,66149.0,66148.0,1.46249408]
[1722423226094,0.00903,66149.0,66148.0,1.46249149]
[1722423228783,0.00903,66149.0,66148.0,1.16013949]
[1722423229394,0.00903,66149.0,66148.0,1.33686504]
[1722423229597,0.00903,66149.0,66148.0,1.46249133]
[1722423232855,0.00903,66149.0,66148.0,1.46249134]
[1722423235422,0.00903,66149.0,66148.0,1.16013934]
[1722423235804,0.00903,66149.0,66148.0,1.46249134]
[1722423236001,0.00903,66149.0,66148.0,1.33686504]
[1722423236203,0.00903,66149.0,66148.0,1.46249087]
[1722423238611,0.00903,66149.0,66148.0,1.54549087]
[1722423239499,0.00903,66149.0,66148.0,1.54548644]
[1722423240261,0.00903,66149.0,66148.0,1.55548644]
[1722423241605,0.00903,66149.0,66148.0,1.54548644]
[1722423242704,0.00903,66149.0,66148.0,1.41986504]
[1722423242919,0.00903,66149.0,66148.0,1.54548611]
[1722423244096,0.00903,66149.0,66148.0,1.46248611]
[1722423245991,0.00903,66149.0,66148.0,1.33686504]
[1722423246193,0.00903,66149.0,66148.0,1.46248647]
[1722423249332,0.00903,66149.0,66148.0,1.46249085]
[1722423252691,0.00903,66149.0,66148.0,1.46249086]
[1722423254353,0.00903,66149.0,66148.0,1.54179086]
[1722423254554,0.0105842,66149.0,66148.0,1.54179086]
[1722423254954,0.00903,66149.0,66148.0,1.54179086]
[1722423255156,0.0105842,66149.0,66148.0,1.54179086]
[1722423255555,0.0105842,66149.0,66148.0,1.60619086]
[1722423255755,0.00903,66149.0,66148.0,1.60619086]
[1722423255957,0.0105842,66149.0,66148.0,1.48056504]
[1722423256175,0.00903,66149.0,66148.0,1.60619085]
[1722423256383,0.0105842,66149.0,66148.0,1.60619085]
[1722423257819,0.00903,66149.0,66148.0,1.60619085]
[1722423258379,0.00903,66149.0,66148.0,1.54179085]
[1722423258970,0.0105842,66149.0,66148.0,1.54179085]
[1722423259596,0.00903,66149.0,66148.0,1.54179085]
[1722423259800,0.0105842,66149.0,66148.0,1.54179085]
[1722423262769,0.00903,66149.0,66148.0,1.41616504]
[1722423262970,0.00903,66149.0,66148.0,1.54179155]
[1722423263296,0.0105842,66149.0,66148.0,1.54179155]
[1722423263502,0.00903,66149.0,66148.0,1.54179155]
[1722423263704,0.01028319,66149.0,66148.0,1.54179155]
[1722423265026,0.13924878,66149.0,66148.0,1.46249155]
[1722423265412,0.0105842,66149.0,66148.0,1.46249155]
[1722423265617,0.07870485,66149.0,66148.0,1.46249155]
[1722423265839,0.07870379,66149.0,66148.0,1.46249155]
[1722423266082,0.00903,66149.0,66148.0,1.46249155]
[1722423266252,0.00903,66149.0,66148.0,1.46249564]
[1722423266401,0.0105842,66149.0,66148.0,1.46249564]
[1722423266803,0.00903,66149.0,66148.0,1.46249457]
[1722423267306,0.0105842,66149.0,66148.0,1.46249457]
[1722423267506,0.0105842,66149.0,66148.0,1.53759457]
[1722423267632,0.0105842,66149.0,66148.0,1.60169457]
[1722423267839,0.05599567,66149.0,66148.0,1.60169457]
[1722423268043,0.05444147,66149.0,66148.0,1.60169457]
[1722423268779,0.05444089,66149.0,66148.0,1.60169457]
[1722423269578,0.05444113,66149.0,66148.0,1.47606504]
[1722423269787,0.05444113,66149.0,66148.0,1.60169224]
[1722423272785,0.00903,66149.0,66148.0,1.41196504]
[1722423273029,0.05444106,66149.0,66148.0,1.53759248]
[1722423275415,0.05444106,66149.0,66148.0,1.46249248]
[1722423276279,0.05444036,66149.0,66148.0,1.4624926]
[1722423279574,0.00903,66149.0,66148.0,1.4624926]
[1722423279779,0.05443929,66149.0,66148.0,1.4624926]
[1722423280862,0.05443929,66149.0,66148.0,1.6034926]
[1722423281269,0.0105842,66149.0,66148.0,1.6034926]
[1722423282877,0.0105842,66149.0,66148.0,1.47786504]
[1722423283082,0.00903,66149.0,66148.0,1.60349155]
[1722423284692,0.01052862,66149.0,66148.0,1.60349155]
[1722423285111,0.00903,66149.0,66148.0,1.60349155]
[1722423285292,0.0105842,66149.0,66148.0,1.60349155]
[1722423285721,0.0105842,66149.0,66148.0,1.63649155]
[1722423285964,0.00903,66149.0,66148.0,1.63649155]
[1722423286379,0.00903,66149.0,66148.0,1.81321704]
[1722423286587,0.00903,66149.0,66148.0,1.93883947]
[1722423287249,0.00903,66149.0,66148.0,1.63648747]
[1722423289004,0.00903,66149.0,66148.0,1.69704347]
[1722423289780,0.00903,66149.0,66148.0,1.69704335]
[1722423291601,0.00903,66149.0,66148.0,1.52304335]
[1722423293176,0.00903,66149.0,66148.0,1.52304445]
[1722423295645,0.00903,66149.0,66148.0,1.60404445]
[1722423299006,0.00903,66149.0,66148.0,1.67044445]
[1722423299782,0.00903,66149.0,66148.0,1.67044401]
[1722423302383,0.00903,66149.0,66148.0,1.60404401]
[1722423302921,0.00903,66149.0,66148.0,1.52304401]
[1722423303199,0.00903,66149.0,66148.0,1.5230438]
[1722423306670,0.00903,66149.0,66148.0,1.52304422]
[1722423308892,0.00903,66149.0,66148.0,1.60274422]
[1722423309069,0.00903,66149.0,66148.0,1.12069222]
[1722423309271,0.00903,66149.0,66148.0,1.42304422]
[1722423309896,0.00903,66149.0,66148.0,1.29742104]
[1722423310097,0.00903,66149.0,66148.0,1.42304574]
[1722423311378,0.05444237,66149.0,66148.0,1.42304574]
[1722423313173,0.05444575,66149.0,66148.0,1.42304574]
[1722423313372,0.05444575,66149.0,66148.0,1.49854574]
[1722423315380,0.00903,66149.0,66148.0,1.42304574]
[1722423315586,0.0105842,66149.0,66148.0,1.12069374]
[1722423315789,0.07715363,66149.0,66148.0,1.12069374]
[1722423316615,0.07715647,66149.0,66148.0,1.12069781]
[1722423319345,0.00903,66149.0,66148.0,1.48454981]
[1722423319569,0.0105842,66149.0,66148.0,1.56084981]
[1722423320091,0.0105842,66149.0,66148.0,1.56084982]
[1722423320300,0.0105842,66149.0,66148.0,1.25849782]
[1722423320656,0.0105842,66149.0,66148.0,1.19699782]
[1722423320866,0.00903,66149.0,66148.0,1.19699782]
[1722423321074,0.07871067,66149.0,66148.0,1.19699782]
[1722423321275,0.0105842,66149.0,66148.0,1.12069782]
[1722423321634,0.07871067,66149.0,66148.0,1.12069782]
[1722423321833,0.07715647,66149.0,66148.0,1.12069782]
[1722423322225,0.00903,66149.0,66148.0,1.12069782]
[1722423322425,0.07871067,66149.0,66148.0,1.12069782]
[1722423322835,0.0105842,66149.0,66148.0,1.12069782]
[1722423323034,0.00903,66149.0,66148.0,1.12069782]
[1722423323265,0.01055018,66149.0,66148.0,0.99506904]
[1722423323466,0.00903,66149.0,66148.0,1.12069838]
[1722423323671,0.0105842,66149.0,66148.0,1.12069838]
[1722423324187,0.00903,66149.0,66148.0,1.12069838]
[1722423325670,0.0105101,66149.0,66148.0,1.12069838]
[1722423326452,0.00903,66149.0,66148.0,0.99506904]
[1722423326659,0.00903,66149.0,66148.0,1.12069839]
[1722423328812,0.00903,66149.0,66148.0,1.26809839]
[1722423329963,0.00903,66149.0,66148.0,1.14246904]
[1722423330171,0.00903,66149.0,66148.0,1.26809839]
[1722423330949,0.0099113,66149.0,66148.0,0.96574639]
[1722423331106,0.07713983,66149.0,66148.0,0.96574639]
[1722423331310,0.00903,66149.0,66148.0,0.96574639]
[1722423331848,0.07856923,66149.0,66148.0,0.96574639]
[1722423332060,0.01045832,66149.0,66148.0,0.96574639]
[1722423332209,0.07714036,66149.0,66148.0,0.96574639]
[1722423333443,0.07713736,66149.0,66148.0,0.77411704]
[1722423333679,0.00903,66149.0,66148.0,0.4462208]
[1722423333883,0.0105842,66149.0,66148.0,0.8997488]
[1722423334014,0.12409648,66149.0,66148.0,0.5973968]
[1722423334213,0.09983758,66149.0,66148.0,0.5973968]
[1722423335787,0.00903,66149.0,66148.0,0.5973968]
[1722423335941,0.10138969,66149.0,66148.0,0.5973968]
[1722423336310,0.09983549,66149.0,66148.0,0.5973968]
[1722423336714,0.09983549,66149.0,66148.0,0.59740076]
[1722423336715,0.09983105,66149.0,66148.0,0.59740076]
[1722423336915,0.00903,66149.0,66148.0,0.59740076]
[1722423337156,0.0105842,66149.0,66148.0,0.59740076]
[1722423337383,0.10138525,66149.0,66148.0,0.59740076]
[1722423337585,0.00903,66149.0,66148.0,0.59740076]
[1722423338001,0.09983105,66149.0,66148.0,0.44622476]
[1722423338162,1.28179116,66149.0,66148.0,0.23918904]
[1722423338363,1.28179116,66149.0,66148.0,0.02517]
[1722423338364,2.00590952,66149.0,66148.0,0.02517]
[1722423338703,0.320687,66143.0,66142.0,0.000913]
[1722423338908,0.320687,66143.0,66126.0,0.000913]
[1722423338909,1.138168,66127.0,66126.0,0.000913]
[1722423339109,1.69488752,66127.0,66126.0,0.000913]
[1722423339311,1.62538752,66127.0,66126.0,0.000913]
[1722423339523,1.63010123,66127.0,66126.0,0.000913]
[1722423339708,1.80074709,66127.0,66126.0,0.000913]
[1722423339931,1.81074709,66127.0,66126.0,0.000913]
[1722423340136,1.8318174,66127.0,66126.0,0.000913]
[1722423340278,2.04884429,66127.0,66126.0,0.000913]
[1722423340483,2.04884429,66127.0,66126.0,0.001913]
[1722423340684,1.058729,66117.0,66116.0,0.37394033]
[1722423340884,1.058729,66117.0,66116.0,0.52457337]
[1722423340885,1.25236213,66117.0,66116.0,0.52457337]
[1722423341341,1.31463332,66117.0,66116.0,0.52457337]
[1722423341774,1.2241857,66117.0,66116.0,0.52457337]
[1722423342183,1.2241857,66117.0,66116.0,0.37394033]
[1722423342358,1.371241,66116.0,66115.0,0.000913]
[1722423342543,1.54966609,66116.0,66115.0,0.000913]
[1722423342971,1.98197518,66116.0,66115.0,0.000913]
[1722423343167,1.84616609,66116.0,66115.0,0.000913]
[1722423344202,1.91783195,66116.0,66115.0,0.000913]
[1722423344416,1.85016609,66116.0,66115.0,0.000913]
[1722423344741,1.94039321,66116.0,66115.0,0.000913]
[1722423344967,1.85016609,66116.0,66115.0,0.000913]
[1722423345146,1.90783094,66116.0,66115.0,0.000913]
[1722423345298,1.7931977,66116.0,66115.0,0.000913]
[1722423345497,1.6337977,66116.0,66115.0,0.000913]
[1722423346416,1.606341,66116.0,66115.0,0.000913]
[1722423346791,1.63823299,66116.0,66115.0,0.000913]
[1722423347173,1.61347514,66116.0,66115.0,0.000913]
[1722423349915,1.606341,66116.0,66115.0,0.000913]
[1722423350315,1.61344436,66116.0,66115.0,0.000913]
[1722423350871,1.61344436,66116.0,66115.0,0.15154604]
[1722423353266,1.606341,66116.0,66115.0,0.15154604]
[1722423353510,1.61346473,66116.0,66115.0,0.15154604]
[1722423354249,1.31096673,66116.0,66115.0,0.15154604]
[1722423354574,0.77136873,66116.0,66115.0,0.15154604]
[1722423354799,0.764245,66116.0,66115.0,0.15154604]
[1722423355031,0.159249,66116.0,66115.0,0.15154604]
[1722423355208,0.764245,66116.0,66115.0,0.15154604]
[1722423355380,0.461747,66116.0,66115.0,0.15154604]
[1722423355542,0.764245,66116.0,66115.0,0.15154604]
[1722423356349,1.066743,66116.0,66115.0,0.15154604]
[1722423358992,1.07375397,66116.0,66115.0,0.15154604]
[1722423359975,1.066743,66116.0,66115.0,0.15154604]
[1722423360351,1.07377366,66116.0,66115.0,0.15154604]
[1722423363541,1.07383236,66116.0,66115.0,0.15154604]
[1722423363876,1.08092172,66116.0,66115.0,0.15154604]
[1722423364089,1.07383236,66116.0,66115.0,0.15154604]
[1722423366339,1.09853584,66116.0,66115.0,0.15154604]
[1722423366540,1.066743,66116.0,66115.0,0.15154604]
[1722423366903,1.07382268,66116.0,66115.0,0.15154604]
[1722423367110,1.09852615,66116.0,66115.0,0.15154604]
[1722423367349,1.14967267,66116.0,66115.0,0.15154604]
[1722423367796,1.21537267,66116.0,66115.0,0.15154604]
[1722423367957,1.51787067,66116.0,66115.0,0.15154604]
[1722423369510,1.60847067,66116.0,66115.0,0.15154604]
[1722423369712,1.59847067,66116.0,66115.0,0.15154604]
[1722423370011,1.56655746,66116.0,66115.0,0.15154604]
[1722423370238,1.59822207,66116.0,66115.0,0.15154604]
[1722423370406,1.60822207,66116.0,66115.0,0.15154604]
[1722423370611,1.59822207,66116.0,66115.0,0.15154604]
[1722423370992,1.60822207,66116.0,66115.0,0.15154604]
[1722423372761,1.60822207,66116.0,66115.0,0.000913]
[1722423372762,1.69415521,66116.0,66115.0,0.000913]
[1722423373110,1.66962935,66116.0,66115.0,0.000913]
[1722423373312,1.66965272,66116.0,66115.0,0.000913]
[1722423373513,1.69432177,66116.0,66115.0,0.000913]
[1722423373921,1.99681977,66116.0,66115.0,0.000913]
[1722423375421,1.98681977,66116.0,66115.0,0.000913]
[1722423375794,1.99681977,66116.0,66115.0,0.000913]
[1722423376542,1.66315975,66116.0,66115.0,0.000913]
[1722423376737,1.694937,66116.0,66115.0,0.000913]
[1722423377557,2.156835,66116.0,66115.0,0.000913]
[1722423377759,1.854337,66116.0,66115.0,0.000913]
[1722423378151,2.156835,66116.0,66115.0,0.000913]
[1722423378351,1.854337,66116.0,66115.0,0.000913]
[1722423379893,1.85407333,66116.0,66115.0,0.000913]
[1722423380094,1.82937133,66116.0,66115.0,0.000913]
[1722423380278,1.854023,66116.0,66115.0,0.000913]
[1722423380475,2.156521,66116.0,66115.0,0.000913]
[1722423380699,1.684623,66116.0,66115.0,0.000913]
[1722423380876,1.538323,66116.0,66115.0,0.000913]
[1722423381081,1.14983216,66116.0,66115.0,0.15154604]
[1722423381453,0.84733416,66116.0,66115.0,0.15154604]
[1722423381633,0.84733416,66116.0,66115.0,0.38419704]
[1722423381634,0.09108916,66116.0,66115.0,0.38419704]
[1722423381842,0.03972692,66116.0,66115.0,0.29554604]
[1722423382379,0.03976211,66116.0,66115.0,0.29554604]
[1722423382594,0.03576211,66116.0,66115.0,0.29554604]
[1722423382834,0.18701111,66116.0,66115.0,0.29554604]
[1722423383034,0.18701111,66116.0,66115.0,0.29854604]
[1722423383255,0.48950911,66116.0,66115.0,0.29854604]
[1722423383453,0.48950726,66116.0,66115.0,0.29854604]
[1722423383884,0.48550726,66116.0,66115.0,0.29854604]
[1722423384046,0.48550726,66116.0,66115.0,0.30154604]
[1722423384648,0.18300926,66116.0,66115.0,0.30154604]
[1722423386456,0.453747,66116.0,66115.0,0.30154604]
[1722423386655,0.48555631,66116.0,66115.0,0.30154604]
[1722423387083,0.03180931,66116.0,66115.0,0.30154604]
[1722423387400,0.04535169,66117.0,66115.0,0.30154604]
[1722423387604,0.06802754,66119.0,66117.0,0.216447]
[1722423387605,0.04535169,66119.0,66117.0,0.216447]
[1722423387813,0.09070339,66123.0,66119.0,0.143]
[1722423387814,0.04535169,66120.0,66119.0,0.143]
[1722423388019,0.04535169,66120.0,66119.0,0.44487504]
[1722423388020,0.03180761,66120.0,66119.0,0.44487504]
[1722423388467,0.04535169,66124.0,66120.0,0.0817]
[1722423388650,0.03179534,66123.0,66122.0,0.294234]
[1722423388847,0.03179534,66123.0,66122.0,0.81880737]
[1722423389021,0.03179534,66124.0,66122.0,0.66757337]
[1722423389222,0.04535169,66125.0,66123.0,0.15063304]
[1722423389428,0.03184089,66124.0,66123.0,0.15063304]
[1722423389831,0.04535169,66125.0,66123.0,0.15063304]
[1722423389832,0.04532316,66125.0,66123.0,0.15063304]
[1722423390059,0.03184089,66124.0,66123.0,0.15063304]
[1722423390525,0.07716405,66124.0,66123.0,0.15063304]
[1722423391452,0.07716405,66124.0,66123.0,0.60433204]
[1722423391655,0.08416405,66124.0,66123.0,0.60533204]
[1722423391859,0.04384089,66124.0,66123.0,0.30286604]
[1722423392125,0.04384089,66124.0,66123.0,0.15163304]
[1722423392332,0.01911144,66124.0,66123.0,0.15163304]
[1722423393346,0.05730005,66124.0,66123.0,0.15163304]
[1722423393545,0.06434443,66124.0,66123.0,0.15163304]
[1722423394282,0.06433052,66124.0,66123.0,0.15163304]
[1722423394510,0.21556152,66124.0,66123.0,0.15163304]
[1722423394680,0.82048552,66124.0,66123.0,0.15163304]
[1722423394882,0.86778183,66124.0,66123.0,0.15163304]
[1722423395288,0.86775573,66124.0,66123.0,0.15163304]
[1722423396037,0.56529373,66124.0,66123.0,0.15163304]
[1722423396479,0.26282675,66124.0,66123.0,0.15163304]
[1722423396627,0.56528875,66124.0,66123.0,0.15163304]
[1722423396839,0.26282675,66124.0,66123.0,0.15163304]